[Event "55th Biel Festival MTO 2022"]
[Site "Biel"]
[Date "2022.07.22"]
[Round "9.25"]
[White "Aziz, Husain"]
[Black "Dishman, Stephen"]
[Result "1-0"]
[ECO "B13"]
[WhiteElo "2380"]
[BlackElo "2252"]
[Annotator "TA"]
[PlyCount "91"]
[EventDate "2022.07.13"]
[EventType "swiss"]
[EventCountry "SUI"]
[SourceTitle "playchess.com"]
[Source "ChessBase"]
[SourceQuality "1"]
[TimeControl "40/5400+30:1800+30"]

{[%evp 9,91,6,9,16,20,0,0,6,52,38,52,45,52,-2,28,23,41,0,56,31,17,0,16,0,6,12,16,8,39,0,57,12,58,29,66,0,0,0,154,168,168,169,148,164,163,164,169,169,169,164,168,169,169,162,229,231,558,527,671,645,624,693,685,678,1016,947,1273,1201,29974,1712,1538,1477,1979,2131,2041,1764,4133,2893,2424,2137,2028,1808,29985,29986]} 1. e4 {[%emt 0:00:00]} c6 {[%emt 0:00:04]} 2. d4 {[%emt 0:00:11]} d5 {[%emt 0:00:07]} 3. exd5 {[%emt 0:00:14]} cxd5 {[%emt 0:00:07]} 4. Bd3 {[%emt 0:00:06]} Nf6 {[%emt 0:00:33]} 5. h3 {[%emt 0:00:46]} g6 {[%emt 0:00:06]} 6. Nf3 {[%emt 0:00:30] B13: Caro-Kann: Exchange Variation and Panov-Botvinnik Attack.} Bf5 {[%emt 0:00:17]} 7. O-O {[%emt 0:01:07]} Nc6 {[%emt 0:02:26]} 8. Re1 {[%emt 0:01:36] [#] The position is equal.} e6 $146 {[%emt 0:03:07]} (8... Bxd3 $11 9. Qxd3 Bg7) ({Predecessor:} 8... Bg7 9. Nc3 O-O 10. Bxf5 gxf5 11. Ne5 Ne4 12. Nxc6 bxc6 13. Ne2 Qb6 14. c3 Rad8 {0-1 (36) Stojadinovic,L (2049)-Jovic,S (2336) Nis 2012}) 9. Bb5 $14 {[%emt 0:05:39]} h5 {[%emt 0:04:30]} 10. Ne5 {[%emt 0:02:42]} Rc8 {[%emt 0:04:13]} 11. Nc3 {[%emt 0:04:48]} (11. Bf4 $14) 11... h4 {[%emt 0:06:03]} 12. Bf4 {[%emt 0:08:52]} Bd6 {[%emt 0:02:26]} 13. Na4 {[%emt 0:04:26]} Kf8 {[%emt 0:17:04]} ({Black should try} 13... Nh5 $11 14. Be3 f6) 14. Bxc6 {[%emt 0:19:16]} bxc6 {[%emt 0:00:41]} 15. Nc5 {[%emt 0:00:05]} Bxc5 {[%emt 0:13:07]} 16. dxc5 {[%emt 0:01:22] Strongly threatening Bg5.} Nh5 {[%emt 0:02:25]} 17. Bh2 {[%emt 0:03:27]} f6 {[%emt 0:06:51]} 18. Nf3 {[%emt 0:08:36]} Ng7 {[%emt 0:00:56]} 19. c3 {[%emt 0:06:49]} Qd7 {[%emt 0:04:42]} ({Better is} 19... e5 $11) 20. Bd6+ {[%emt 0:06:30]} (20. c4 $5) 20... Kf7 {[%emt 0:00:58]} (20... Kg8 $11 {deserves consideration.}) 21. Qd4 {[%emt 0:01:34][%cal Od6e5] Be5! is the strong threat.} g5 {[%emt 0:15:07]} 22. Be5 {[%emt 0:01:34] 0x0.0013b8fc7bdbdp-1022s more active pieces.} Qd8 $1 $11 {[%emt 0:00:26]} 23. Nxg5+ {[%emt 0:11:42]} fxg5 $2 {[%emt 0:05:37] White now steadily converts the win.} (23... Kg6 $11 24. Nf3 fxe5 25. Nxe5+ Kh7) 24. Bxg7 $16 {[%emt 0:00:07]} Rg8 {[%emt 0:00:04]} 25. Be5 {[%emt 0:01:20]} g4 {[%emt 0:00:05] [#]} 26. Kh2 {[%emt 0:01:04]} Qg5 {[%emt 0:00:51]} 27. hxg4 {[%emt 0:00:51]} Qxg4 {[%emt 0:01:48]} 28. Qxg4 {[%emt 0:00:14] Dancing on a razor blade.} Rxg4 {[%emt 0:00:04]} 29. f3 {[%emt 0:00:27]} Rg5 {[%emt 0:02:00]} 30. Rad1 {[%emt 0:00:19]} Rcg8 {[%emt 0:03:23]} 31. Re2 {[%emt 0:01:11]} Ke7 {[%emt 0:04:10]} (31... a5 {keeps fighting.} 32. b3 Ke7) 32. Rd4 $18 {[%emt 0:00:42]} h3 $2 {[%emt 0:00:56]} (32... Kf7 {is a better chance.} 33. Rf4 (33. Rxh4 Bd3 $14) 33... a5) 33. g4 {[%emt 0:00:26]} Be4 {[%emt 0:00:27]} 34. Bd6+ {[%emt 0:00:19]} ({Weaker is} 34. fxe4 Rxe5 35. Kxh3 Rg7 $18) 34... Kd7 {[%emt 0:00:06]} 35. fxe4 {[%emt 0:00:36]} Rxg4 {[%emt 0:00:20]} 36. exd5 {[%emt 0:00:23]} Rg2+ {[%emt 0:00:45]} 37. Rxg2 {[%emt 0:00:07]} Rxg2+ {[%emt 0:00:02]} 38. Kxh3 {[%emt 0:00:10] [#] White wants to mate with dxc6+.} Rxb2 {[%emt 0:00:02]} 39. dxc6+ {[%emt 0:02:00]} (39. Rb4 $142 Rxb4 40. dxc6+ Kxc6 41. cxb4 e5 42. Kg4 e4 43. Kf4 e3 44. Kxe3) 39... Kxc6 {[%emt 0:00:05][%mdl 4096] Endgame KRB-KR} 40. Ra4 {[%emt 0:00:05]} Rb7 {[%emt 0:00:17]} 41. Kg4 {[%emt 0:30:46]} Rf7 {[%emt 0:31:04]} 42. Kg5 {[%emt 0:00:28]} Kb5 {[%emt 0:02:25]} 43. Rf4 {[%emt 0:01:39] c4+ would kill now.} Rg7+ {[%emt 0:00:00]} 44. Kf6 {[%emt 0:00:00]} Rg2 {[%emt 0:00:00]} 45. Kxe6 {[%emt 0:00:00] White threatens Kd7 and mate.} Rxa2 {[%emt 0:00:00]} 46. Kd7 {[%emt 0:00:00] Weighted Error Value: White=0.14 (very precise) /Black=0.75} 1-0

[Event "55th Biel Festival MTO 2022"]
[Site "Biel"]
[Date "2022.07.22"]
[Round "9.26"]
[White "Schlegel, Igor"]
[Black "Ajay Krishna, S."]
[Result "1-0"]
[ECO "B96"]
[WhiteElo "2194"]
[BlackElo "2372"]
[Annotator "TA"]
[PlyCount "63"]
[EventDate "2022.07.13"]
[EventType "swiss"]
[EventCountry "SUI"]
[SourceTitle "playchess.com"]
[Source "ChessBase"]
[SourceQuality "1"]
[TimeControl "40/5400+30:1800+30"]

{[%evp 16,63,57,35,46,46,45,46,40,0,54,40,39,42,77,68,84,38,85,82,124,118,119,119,119,109,209,202,153,125,410,403,805,791,799,783,778,778,1197,909,1561,1535,5322,5226,3296,3044,2210,2206,29996,29996]} 1. e4 {[%emt 0:00:03]} c5 {[%emt 0:00:10]} 2. Nf3 {[%emt 0:00:03]} d6 {[%emt 0:00:05]} 3. d4 {[%emt 0:00:02]} cxd4 {[%emt 0:00:06]} 4. Nxd4 {[%emt 0:00:03]} Nf6 {[%emt 0:00:14]} 5. Nc3 {[%emt 0:00:03]} a6 {[%emt 0:00:05]} 6. Bg5 {[%emt 0:00:14]} e6 {[%emt 0:00:48]} 7. f4 {[%emt 0:00:09]} Qc7 {[%emt 0:00:15]} 8. Bxf6 {[%emt 0:01:00]} gxf6 {[%emt 0:00:06]} 9. Qd2 {[%emt 0:00:10] 9.Qf3 is more fashionable.} h5 {[%emt 0:00:49] B96: Sicilian Najdorf: 6 Bg5 e6 7 f4, lines other than 7...Qb6 and 7...Be7.} 10. O-O-O {[%emt 0:02:19]} Bd7 {[%emt 0:07:19]} 11. Kb1 {[%emt 0:00:46]} Nc6 {[%emt 0:04:24] White is slightly better.} 12. Bc4 {[%emt 0:02:03]} Na5 {[%emt 0:03:07]} (12... Nxd4 $11 13. Qxd4 Qc5) 13. Be2 {[%emt 0:07:22][%cal Od4f5]} O-O-O $1 {[%emt 0:10:00]} 14. Rhf1 {[%emt 0:03:27] [#]} Nc4 $146 {[%emt 0:06:02]} ({Predecessor:} 14... Kb8 15. Rf3 Rc8 16. f5 Be7 17. fxe6 fxe6 18. Nf5 exf5 19. Nd5 Qd8 20. Nxe7 Qxe7 21. Qxa5 fxe4 {0-1 (36) Ootes,L (2171)-De Vreugt,D (2401) Bussum 2008}) 15. Qd3 {[%emt 0:02:42]} Nb6 {[%emt 0:01:50]} 16. Qh3 {[%emt 0:04:48]} (16. f5 $16) 16... h4 {[%emt 0:08:24] [#]} (16... Kb8 $14) 17. f5 $1 $36 {[%emt 0:14:32][%mdl 2048] White is on the roll.} e5 {[%emt 0:01:20] [#]} 18. Ne6 {[%emt 0:00:49][%mdl 512]} fxe6 {[%emt 0:12:15]} 19. fxe6 {[%emt 0:00:04][%mdl 64] Discovered Attack} Kb8 {[%emt 0:00:46] And now ...Be8 would win.} 20. exd7 {[%emt 0:00:21]} Nxd7 {[%emt 0:00:13]} (20... Rxd7 $16 {keeps fighting.} 21. Bg4 (21. Rxf6 Rg7 $16) 21... Rg7) 21. Nd5 $18 {[%emt 0:22:27][%csl LRc7,LRf6]} Qc6 {[%emt 0:00:34]} 22. Rd3 {[%emt 0:03:26][%cal Bd1d3,Bd3c3,Bc3c4][%mdl 32] Hoping for Rc3. White is much more active. The black rooks are badly placed.} Rh6 $2 {[%emt 0:02:21][%mdl 8192] This move loses the game for Black.} (22... Nc5 $16) 23. Rc3 {[%emt 0:08:42]} Qa4 {[%emt 0:00:17]} (23... Nc5 $142 24. b4 Qd7 25. bxc5 Qxh3 26. gxh3 dxc5 27. Nxf6 Bd6) 24. Rc4 {[%emt 0:00:07]} Qa5 {[%emt 0:00:14]} 25. b4 {[%emt 0:06:30]} Qa4 {[%emt 0:00:05]} 26. Rf3 {[%emt 0:01:01][%cal Bf1f3,Bf3a3,Ba3a8][%mdl 32] Ra3 is the strong threat.} Qb5 {[%emt 0:01:46]} 27. a4 {[%emt 0:01:57]} Qxa4 {[%emt 0:00:20]} 28. Ra3 {[%emt 0:00:03]} Qb5 {[%emt 0:00:04] [#]} 29. Rc8+ $3 {[%emt 0:00:08][%mdl 576] Discovered Attack} Rxc8 {[%emt 0:00:34]} 30. Bxb5 {[%emt 0:00:04]} Nc5 {[%emt 0:00:38]} 31. bxc5 {[%emt 0:01:01][%cal Oh3d7] Threatening mate with Qd7!} axb5 {[%emt 0:00:07]} 32. Ra8+ {[%emt 0:00:14] Weighted Error Value: White=0.13 (very precise) /Black=0.83} 1-0

[Event "55th Biel Festival MTO 2022"]
[Site "Biel"]
[Date "2022.07.22"]
[Round "9.27"]
[White "Akshit Kumar J"]
[Black "Herrera Reyes, Jose Antonio"]
[Result "1/2-1/2"]
[ECO "B42"]
[WhiteElo "2103"]
[BlackElo "2345"]
[Annotator "TA"]
[PlyCount "115"]
[EventDate "2022.07.13"]
[EventType "swiss"]
[EventCountry "SUI"]
[SourceTitle "playchess.com"]
[Source "ChessBase"]
[SourceQuality "1"]
[TimeControl "40/5400+30:1800+30"]

{[%evp 11,115,27,42,47,61,45,68,47,54,47,60,50,65,62,56,58,80,72,80,64,99,73,76,51,74,-16,34,-200,28,-184,17,-463,-275,-366,-368,-318,-61,-66,-79,-212,21,0,0,-62,114,59,174,41,37,40,23,0,0,0,0,0,0,0,0,0,0,0,0,0,0,0,0,0,0,0,0,0,0,0,0,0,0,0,0,0,0,0,0,0,0,0,0,0,0,0,0,0,0,0,0,0,0,0,0,0,0,0,0,0,0,0]} 1. e4 {[%emt 0:00:07]} c5 {[%emt 0:00:02]} 2. Nf3 {[%emt 0:00:09]} e6 {[%emt 0:00:08]} 3. d4 {[%emt 0:00:06]} cxd4 {[%emt 0:00:01]} 4. Nxd4 {[%emt 0:00:08]} a6 {[%emt 0:00:12]} 5. Bd3 {[%emt 0:00:06]} Bc5 {[%emt 0:00:26]} 6. Nb3 {[%emt 0:00:09]} Ba7 {[%emt 0:00:01]} 7. Qg4 {[%emt 0:06:05] B42: Sicilian: Kan Variation: 5 Bd3.} Kf8 {[%emt 0:08:15] [#]} 8. Bg5 $146 {[%emt 0:11:32] White is more active.} ({Predecessor:} 8. Qe2 Ne7 9. O-O Nbc6 10. c4 Qc7 11. Nc3 Ng6 12. Be3 Nf4 13. Qd2 Nxd3 14. Bxa7 Rxa7 15. Qxd3 {0-1 (27) Aaditya,D (2042)-Harika,D (2517) Chess.com INT 2022}) 8... f6 {[%emt 0:01:55]} 9. Bd2 {[%emt 0:05:44] White is slightly better.} Nc6 {[%emt 0:01:44]} 10. Nc3 {[%emt 0:02:09]} b5 {[%emt 0:01:09]} 11. h4 {[%emt 0:03:35][%cal Bh2h4,Bh4h5][%mdl 32]} Bb7 {[%emt 0:10:11]} 12. h5 {[%emt 0:05:01]} Ne5 {[%emt 0:08:28]} 13. Qe2 {[%emt 0:01:39]} Qc7 {[%emt 0:00:26]} 14. a4 {[%emt 0:01:51]} b4 {[%emt 0:06:34]} 15. Na2 {[%emt 0:02:04]} Ne7 {[%emt 0:04:21]} 16. Bxb4 {[%emt 0:04:44]} Kf7 {[%emt 0:02:16]} 17. Ba5 {[%emt 0:07:26]} Qb8 {[%emt 0:05:55]} 18. Bd2 {[%emt 0:10:48]} (18. Bc3 $16) 18... d5 {[%emt 0:12:01]} (18... Nxd3+ $11 19. cxd3 Bxe4 $1 20. dxe4 Qxb3) 19. O-O $2 {[%emt 0:09:34]} (19. h6 $14 {stays ahead.}) 19... g5 $2 {[%emt 0:13:30]} (19... dxe4 $1 $19 20. Bxe4 f5 21. Bxb7 Ng4 $1 22. Qxg4 fxg4 23. Bxa8 Qxa8) 20. Na5 $2 {[%emt 0:03:51]} (20. Nc3 $11) 20... g4 $2 {[%emt 0:06:23]} (20... dxe4 $19 21. Bxe4 f5 22. Bxb7 Ng4 $1 23. Qxg4 fxg4 24. Bxa8 Qxa8) 21. Be3 $2 {[%emt 0:02:54][%mdl 8192]} (21. Nxb7 $2 Nf3+ 22. Qxf3 gxf3 $19) (21. Kh1 $11 {and White stays safe.}) 21... dxe4 {[%emt 0:02:19]} (21... Rg8 $142 {[%cal Oe5f3] ( -> ...Nf3+!)} 22. Bxa7 Rxa7) 22. Bxe4 {[%emt 0:01:51]} Bxe4 {[%emt 0:01:43]} 23. Bxa7 {[%emt 0:00:11] [#]} Rxa7 {[%emt 0:00:18]} (23... Qxb2 24. Qxe4 Rxa7 25. Rfb1 $14) (23... Qg8 $1 $19 {And now ...Nf3+ would win.} 24. Rfd1 (24. Qxe4 $2 Nf3+ 25. Qxf3 gxf3 $19) (24. Rfe1 Nf3+) 24... Bf3) 24. Qxe4 $15 {[%emt 0:00:20]} Rd7 {[%emt 0:01:25]} (24... Qxb2 25. Rfb1 Qa3 26. Nb7 $14) 25. Nc4 {[%emt 0:02:43] [#]} (25. Rfe1 $17 g3 26. Nc4) 25... Rd5 $2 {[%emt 0:02:47]} (25... Nxc4 26. Qxc4 Rc8 27. Qxg4 Qxb2 28. c3 $11) ({Black should try} 25... Nf3+ $1 $19 {[%mdl 512]} 26. gxf3 gxf3) 26. Rfe1 $36 {[%emt 0:04:46][%cal Oa2b4][%mdl 2048] White has good play.} (26. Rae1 $5 {[%cal Ra2b4]} Rg8 27. Nxe5+ (27. Qxh7+ $2 Rg7 $19) 27... Rxe5 28. Qc4 $14 (28. Qxh7+ $2 Rg7 $19)) 26... Rg8 {[%emt 0:03:41]} 27. Kf1 {[%emt 0:03:18]} (27. Qxh7+ Rg7 28. Qe4 g3 29. fxg3 Nf5 30. Nxe5+ Rxe5 $15) (27. Nb4 $11 Nf3+ 28. Kf1 (28. gxf3 gxf3+ 29. Kf1 Rg1+ 30. Kxg1 Qg8+ 31. Qg6+ Nxg6 $19) 28... Nh2+ 29. Kg1 Nf3+ 30. Kf1 (30. gxf3 gxf3+ 31. Kf1 Rg1+ 32. Kxg1 Qg8+) 30... Nh2+ 31. Kg1 Nf3+) 27... Rg5 $2 {[%emt 0:01:55] [#]} (27... g3 $1 $15 {keeps the upper hand.} 28. Nb4 (28. Qxh7+ $2 Rg7 $19) 28... gxf2) 28. Nc3 {[%emt 0:02:50]} (28. Qxh7+ Rg7 29. Qe4 g3 $11) (28. Nb4 $1 $16 {[%cal Rb4d5][%mdl 512]} Kg7 (28... Kg8 29. Nd3) 29. h6+ (29. Nxd5 exd5 30. h6+ Kg8 $17) (29. Nxa6 $2 Qa7 $19) 29... Kh8 30. Ne3 (30. Nxd5 exd5 31. Qf4 Rf5 $17) (30. Nxa6 Qa7 $17)) 28... Kg7 {[%emt 0:00:10]} 29. Qf4 {[%emt 0:02:53]} (29. Nxd5 exd5 30. h6+ Kh8 $17) (29. h6+ $1 $18 Kxh6 30. Nxd5 exd5 {[#]} 31. Qf4 $1) 29... Rxh5 $14 {[%emt 0:03:36]} 30. Nxd5 {[%emt 0:01:28]} Nxd5 {[%emt 0:00:01]} 31. Qg3 {[%emt 0:02:22]} (31. Qd4 $5 {[%cal Rc4e5]} Kf7 32. g3 $11 (32. Nxe5+ fxe5 33. Qe4 Rh1+ 34. Ke2 Qxb2 $11)) 31... Qb4 {[%emt 0:00:33] The position is equal.} 32. Nxe5 {[%emt 0:01:55]} Rh1+ {[%emt 0:00:01]} 33. Ke2 {[%emt 0:00:05][%cal Bf1e2,Be2e3,Be3f3][%mdl 32]} Nf4+ {[%emt 0:00:04]} 34. Ke3 {[%emt 0:00:43]} Rxe1+ {[%emt 0:03:48]} 35. Rxe1 {[%emt 0:00:01] Chess con chili.} fxe5 $11 {[%emt 0:00:11][%cal Rb4e1][%mdl 4096] Endgame KQR-KQN} 36. c3 {[%emt 0:01:57]} Qxb2 {[%emt 0:00:59]} 37. Qxg4+ {[%emt 0:01:12]} Kf7 {[%emt 0:00:01]} 38. Kf3 {[%emt 0:00:30]} Qxc3+ {[%emt 0:00:29]} 39. Re3 {[%emt 0:00:08]} Qc6+ {[%emt 0:00:06]} 40. Re4 {[%emt 0:00:48]} Qd5 {[%emt 0:01:14]} 41. Qg5 {[%emt 0:02:38]} Qd1+ {[%emt 0:11:58]} 42. Kg3 {[%emt 0:00:28]} Ne2+ {[%emt 0:00:08]} 43. Rxe2 $1 {[%emt 0:02:33]} Qxe2 {[%emt 0:00:03] KQ-KQ} 44. Qd8 {[%emt 0:01:10] Inhibits Qd3+.} Qh5 {[%emt 0:02:45]} 45. a5 {[%emt 0:04:35]} Qg6+ {[%emt 0:04:34]} 46. Kh2 {[%emt 0:00:47]} Qh6+ {[%emt 0:00:01]} 47. Kg1 {[%emt 0:00:30]} Qc1+ {[%emt 0:00:01]} 48. Kh2 {[%emt 0:00:06]} Qf4+ {[%emt 0:00:03]} 49. Kg1 {[%emt 0:00:18]} Qd4 {[%emt 0:01:02]} 50. Qb6 {[%emt 0:00:53]} Qc4 {[%emt 0:01:52]} 51. Qa7+ {[%emt 0:01:47]} Kg6 {[%emt 0:00:08]} 52. Qb8 {[%emt 0:00:59]} Kf5 {[%emt 0:05:32]} 53. Qf8+ {[%emt 0:01:03]} Ke4 {[%emt 0:00:19]} 54. Qg7 {[%emt 0:01:39]} h5 {[%emt 0:02:18]} 55. Qh7+ {[%emt 0:04:01]} Kd5 {[%emt 0:00:08]} 56. Qxh5 {[%emt 0:00:51]} Qc1+ {[%emt 0:02:04]} 57. Kh2 {[%emt 0:00:02] Strongly threatening Qe2.} Qf4+ {[%emt 0:01:34]} 58. Kg1 {[%emt 0:00:02] Weighted Error Value: White=0.56/Black=0.39} 1/2-1/2

[Event "55th Biel Festival MTO 2022"]
[Site "Biel"]
[Date "2022.07.22"]
[Round "9.28"]
[White "Abdulrahman Mohammad, Al Taher"]
[Black "Sahithi Varshini M"]
[Result "1/2-1/2"]
[ECO "E48"]
[WhiteElo "2029"]
[BlackElo "2312"]
[Annotator "TA"]
[PlyCount "90"]
[EventDate "2022.07.13"]
[EventType "swiss"]
[EventCountry "SUI"]
[SourceTitle "playchess.com"]
[Source "ChessBase"]
[SourceQuality "1"]
[TimeControl "40/5400+30:1800+30"]

{[%evp 13,90,-7,41,27,28,27,41,-5,90,30,35,-57,-62,-80,-86,-191,-175,-170,-75,-79,-61,-69,-39,-112,-118,-97,-108,-368,-341,-374,-137,-198,-177,-179,-164,-139,-143,-178,-66,-173,-158,-164,-86,-229,87,93,91,110,87,110,373,349,423,405,456,245,402,432,617,613,607,306,281,0,564,0,0,0,0,0,0,0,0,0,0,0,0,0,0]} 1. d4 {[%emt 0:01:34]} Nf6 {[%emt 0:00:11]} 2. c4 {[%emt 0:00:36]} e6 {[%emt 0:00:05]} 3. Nc3 {[%emt 0:00:32]} Bb4 {[%emt 0:00:12]} 4. e3 {[%emt 0:00:59]} O-O {[%emt 0:00:06]} 5. Bd3 {[%emt 0:01:06]} d5 {[%emt 0:00:21]} 6. cxd5 {[%emt 0:01:06]} exd5 {[%emt 0:00:40]} 7. Nge2 {[%emt 0:01:25]} Nc6 {[%emt 0:07:51]} (7... Bd6 $11) 8. a3 $14 {[%emt 0:10:15] E48: Nimzo-Indian: Rubinstein: 5 Bd3 d5 including 6 Ne2, but excluding 6 a3.} Bd6 {[%emt 0:01:56]} 9. f3 {[%emt 0:02:45]} Re8 {[%emt 0:08:36]} 10. O-O {[%emt 0:02:33]} (10. Qc2 $14) 10... Bf8 {[%emt 0:05:59] [#]} (10... Ne7 $11 {remains equal.}) 11. Qe1 $146 {[%emt 0:10:34]} ({White should try} 11. Bc2 $16) ({Predecessor:} 11. Kh1 b6 12. b4 Bb7 13. Bc2 a5 14. b5 Na7 15. Ng3 Bd6 16. Nf5 Bf8 17. Ng3 {½-½ (17) Reilly,T (2218)-Johansen,D (2480) Gosford 1988}) 11... Na5 $11 {[%emt 0:09:49][%cal Bc6a5,Ba5b3,Bb3a1][%mdl 32]} 12. e4 {[%emt 0:26:35]} (12. Bc2 $14) 12... Nb3 $15 {[%emt 0:11:09]} 13. Bg5 {[%emt 0:18:32] aiming for Rd1.} Nxa1 {[%emt 0:00:26]} 14. Bxf6 {[%emt 0:04:52]} (14. Qh4 $17 {was necessary.} h6 15. Bxf6 gxf6 16. Qg3+ (16. Nxd5 Nb3 $17) 16... Kh8 17. Rxa1) 14... Qxf6 $19 {[%emt 0:00:07]} 15. Nxd5 {[%emt 0:00:06] [#]} Qd8 {[%emt 0:00:08]} 16. Qxa1 $17 {[%emt 0:00:31]} c6 {[%emt 0:00:06]} 17. Ne3 {[%emt 0:02:56]} Bd7 {[%emt 0:01:25]} (17... c5 $5 {[%cal Rc5d4]} 18. d5 Bd7 $15) 18. Qe1 {[%emt 0:02:22]} (18. Qc1 $15) 18... c5 {[%emt 0:00:37]} 19. d5 {[%emt 0:02:40]} b5 {[%emt 0:00:13]} 20. Qg3 $2 {[%emt 0:02:45][%mdl 8192]} (20. Kh1 $17 {was worth a try.}) 20... c4 $19 {[%emt 0:05:50]} 21. Bb1 {[%emt 0:00:19]} Qf6 {[%emt 0:00:38]} (21... Bc5 $19 {is more deadly.} 22. f4 Qb6) 22. Nd1 {[%emt 0:04:02]} (22. Nc3 $17) 22... Bc5+ {[%emt 0:02:29]} 23. Kh1 {[%emt 0:00:09]} a5 {[%emt 0:00:12]} 24. f4 {[%emt 0:00:41]} b4 {[%emt 0:00:17]} 25. Qf3 {[%emt 0:01:34]} Qh4 {[%emt 0:03:16]} ({Black should play} 25... Qb6 $1 $19 {...bxa3 is the strong threat.} 26. Bc2 c3) 26. h3 {[%emt 0:01:14]} (26. e5 $1 $15) 26... h5 {[%emt 0:02:54]} 27. Ne3 {[%emt 0:00:40] Inhibits Bg4.} bxa3 {[%emt 0:09:32]} (27... Bg4 $1 $19 {[%cal Rg4f3]} 28. Nxg4 hxg4 29. Qxg4 Qxg4 30. hxg4 bxa3 31. bxa3 g5) 28. bxa3 {[%emt 0:00:18] [#]} (28. Nxc4 $17 {was the only chance.} axb2 29. Nxb2) 28... Bxe3 $2 {[%emt 0:00:05]} (28... Bxa3 29. e5 $14) ({Better is} 28... Rab8 $1 $19 {[%cal Rb8b3] Threatens to win with ...Rb3.} 29. Nxc4 Bg4) 29. Qxe3 $16 {[%emt 0:00:04]} Rab8 {[%emt 0:00:09] [#]} 30. Nd4 {[%emt 0:00:56] Prevents Rb3.} Qe7 {[%emt 0:17:18]} 31. e5 {[%emt 0:00:26]} c3 $2 {[%emt 0:04:03][%mdl 8192]} (31... Qc5 $16) 32. Qxc3 $18 {[%emt 0:00:34]} Rec8 {[%emt 0:00:03]} 33. Qd3 {[%emt 0:00:11] White wants to mate with Qh7+.} g6 {[%emt 0:00:05]} 34. e6 {[%emt 0:00:58]} (34. Ba2 $142) 34... Be8 $2 {[%emt 0:00:02]} (34... fxe6 {keeps fighting.} 35. dxe6 (35. Qxg6+ Qg7 $16) 35... Be8) 35. f5 {[%emt 0:00:08]} Qg5 {[%emt 0:00:35]} (35... Qd6 $142 36. Qd2 (36. fxg6 fxg6 37. Qf3 Rb7 $16) 36... Rxb1 37. Rxb1 Qxd5) 36. fxg6 {[%emt 0:00:35]} fxg6 {[%emt 0:00:07]} 37. Nf3 {[%emt 0:00:55]} ({Weaker is} 37. Qf3 Rc1 38. Qf8+ Kh7 $14) 37... Qf6 {[%emt 0:00:34] And now ...Bb5 would win.} 38. Nd4 {[%emt 0:00:24] Prevents Bb5.} (38. Qe4) 38... Qg5 $1 {[%emt 0:00:02]} 39. Qf3 $2 {[%emt 0:00:28]} ({White must play} 39. d6 $18) 39... Rc1 $11 {[%emt 0:00:05] The position is equal.} 40. Be4 {[%emt 0:00:35]} Rxf1+ {[%emt 0:00:19]} 41. Qxf1 {[%emt 0:30:04]} Qe5 {[%emt 0:30:08]} 42. Nc6 {[%emt 0:00:00]} Bxc6 {[%emt 0:00:00]} 43. Qf7+ {[%emt 0:00:00]} Kh8 {[%emt 0:00:00]} 44. Bxg6 {[%emt 0:00:00][%csl Gg6][%cal Rf7h7]} Qe1+ {[%emt 0:00:00]} 45. Kh2 {[%emt 0:00:00][%csl Gg6][%cal Rf7h7] Really sharp!} Qe5+ {[%emt 0:00:00] White really could win this.  Weighted Error Value: White=0.87/Black=0.53} 1/2-1/2